[Event "Early-Titled-Tuesday-Blitz-April-23-2024"]
[Site "Chess.com"]
[Date "2024.04.23"]
[Round "1"]
[White "KononenkoD"]
[Black "PawnEatingZombie"]
[Result "1-0"]
[WhiteElo "2615"]
[BlackElo "2237"]
[TimeControl "180+1"]
[EndTime "8:09:15 PDT"]
[Termination "KononenkoD won on time"]

1. e4 {[%clk 0:02:48.8]} 1... c5 {[%clk 0:02:59.5]} 2. Nf3 {[%clk 0:02:49]} 2...
Nc6 {[%clk 0:03:00]} 3. d4 {[%clk 0:02:49.9]} 3... cxd4 {[%clk 0:03:00.1]} 4.
Nxd4 {[%clk 0:02:45.7]} 4... e5 {[%clk 0:02:59.6]} 5. Nb5 {[%clk 0:02:44.3]}
5... d6 {[%clk 0:03:00.1]} 6. c4 {[%clk 0:02:41.1]} 6... Be6 {[%clk 0:02:53]} 7.
Be2 {[%clk 0:02:35.5]} 7... a6 {[%clk 0:02:48.3]} 8. N5c3 {[%clk 0:02:34.5]}
8... g6 {[%clk 0:02:47.1]} 9. O-O {[%clk 0:02:33.2]} 9... Bg7 {[%clk 0:02:47.6]}
10. Nd5 {[%clk 0:02:31.2]} 10... Nf6 {[%clk 0:02:34.4]} 11. Nbc3 {[%clk
0:02:27.7]} 11... O-O {[%clk 0:02:33.5]} 12. Bg5 {[%clk 0:02:26.7]} 12... Nd4
{[%clk 0:02:23.6]} 13. Kh1 {[%clk 0:02:17.6]} 13... Bxd5 {[%clk 0:02:12.8]} 14.
Nxd5 {[%clk 0:02:15.3]} 14... Ne6 {[%clk 0:02:13.2]} 15. Bxf6 {[%clk 0:02:14]}
15... Bxf6 {[%clk 0:02:12.8]} 16. Bg4 {[%clk 0:02:14]} 16... Nd4 {[%clk
0:02:04.9]} 17. f4 {[%clk 0:01:58.1]} 17... exf4 {[%clk 0:01:58.6]} 18. Rxf4
{[%clk 0:01:54.5]} 18... Bg7 {[%clk 0:01:57.9]} 19. Qf1 {[%clk 0:01:47.8]} 19...
Ne6 {[%clk 0:01:48.4]} 20. Rf2 {[%clk 0:01:35.4]} 20... Qh4 {[%clk 0:01:33.6]}
21. Bf3 {[%clk 0:01:25.5]} 21... Be5 {[%clk 0:01:27.3]} 22. g3 {[%clk
0:01:19.9]} 22... Bxg3 {[%clk 0:01:21.6]} 23. Rg2 {[%clk 0:01:19.8]} 23... Be5
{[%clk 0:01:18.9]} 24. Qe1 {[%clk 0:01:14.6]} 24... Qxe1+ {[%clk 0:01:17.8]} 25.
Rxe1 {[%clk 0:01:15.5]} 25... Nf4 {[%clk 0:01:11.4]} 26. Nxf4 {[%clk 0:01:13.8]}
26... Bxf4 {[%clk 0:01:12.3]} 27. Rd1 {[%clk 0:01:13.2]} 27... Be5 {[%clk
0:01:12.4]} 28. b3 {[%clk 0:01:13.1]} 28... Rac8 {[%clk 0:01:11.8]} 29. Be2
{[%clk 0:01:12.6]} 29... b6 {[%clk 0:01:10]} 30. Bd3 {[%clk 0:01:07.5]} 30... a5
{[%clk 0:01:09.7]} 31. Be2 {[%clk 0:01:00.4]} 31... Kg7 {[%clk 0:01:09.9]} 32.
Rd3 {[%clk 0:00:59.6]} 32... f6 {[%clk 0:01:10.2]} 33. Kg1 {[%clk 0:00:55.4]}
33... Rcd8 {[%clk 0:01:10.2]} 34. Kf1 {[%clk 0:00:55.8]} 34... Kf7 {[%clk
0:01:08.4]} 35. Ke1 {[%clk 0:00:55.9]} 35... Ke7 {[%clk 0:01:03.2]} 36. Kd2
{[%clk 0:00:52.4]} 36... Rg8 {[%clk 0:01:03.5]} 37. Rh3 {[%clk 0:00:41.8]} 37...
Rg7 {[%clk 0:01:01.9]} 38. Bd3 {[%clk 0:00:36.6]} 38... Rh8 {[%clk 0:00:59.4]}
39. Kc2 {[%clk 0:00:29.7]} 39... h5 {[%clk 0:00:58.8]} 40. a3 {[%clk 0:00:29.7]}
40... g5 {[%clk 0:00:57.8]} 41. b4 {[%clk 0:00:21.5]} 41... axb4 {[%clk
0:00:57.6]} 42. axb4 {[%clk 0:00:20.6]} 42... h4 {[%clk 0:00:55.5]} 43. Kb3
{[%clk 0:00:20]} 43... g4 {[%clk 0:00:53.7]} 44. Re3 {[%clk 0:00:20.3]} 44... h3
{[%clk 0:00:50.9]} 45. Ra2 {[%clk 0:00:16.9]} 45... Rd8 {[%clk 0:00:36.1]} 46.
c5 {[%clk 0:00:16]} 46... bxc5 {[%clk 0:00:35.8]} 47. Bb5 {[%clk 0:00:15.9]}
47... c4+ {[%clk 0:00:26]} 48. Kxc4 {[%clk 0:00:15.3]} 48... Rc8+ {[%clk
0:00:25.9]} 49. Kd5 {[%clk 0:00:15.9]} 49... Rc7 {[%clk 0:00:26.4]} 50. Ra8
{[%clk 0:00:15.8]} 50... g3 {[%clk 0:00:24.1]} 51. hxg3 {[%clk 0:00:15.3]} 51...
h2 {[%clk 0:00:24]} 52. Re1 {[%clk 0:00:15.9]} 52... Rh7 {[%clk 0:00:22.9]} 53.
Rh1 {[%clk 0:00:14.8]} 53... Bxg3 {[%clk 0:00:23.1]} 54. Re8+ {[%clk 0:00:14.4]}
54... Kf7 {[%clk 0:00:22.6]} 55. Re6 {[%clk 0:00:14.7]} 55... Rh5+ {[%clk
0:00:21.4]} 56. e5 {[%clk 0:00:13.4]} 56... Bxe5 {[%clk 0:00:18.6]} 57. Be8+
{[%clk 0:00:12.3]} 57... Kf8 {[%clk 0:00:17.7]} 58. Bxh5 {[%clk 0:00:13.2]}
58... Rc2 {[%clk 0:00:11.3]} 59. Re8+ {[%clk 0:00:12.3]} 59... Kg7 {[%clk
0:00:10.9]} 60. Bf3 {[%clk 0:00:13.2]} 60... Rf2 {[%clk 0:00:10.2]} 61. Be4
{[%clk 0:00:12.8]} 61... Rd2+ {[%clk 0:00:09.7]} 62. Ke6 {[%clk 0:00:12.5]}
62... Re2 {[%clk 0:00:09.5]} 63. Bd5 {[%clk 0:00:11.7]} 63... Kh6 {[%clk
0:00:08.9]} 64. Kf7 {[%clk 0:00:11]} 64... Kg5 {[%clk 0:00:08.9]} 65. Rg8+
{[%clk 0:00:11.3]} 65... Kf4 {[%clk 0:00:08.9]} 66. Be6 {[%clk 0:00:11.3]} 66...
Ke3 {[%clk 0:00:07.1]} 67. b5 {[%clk 0:00:11.2]} 67... Rb2 {[%clk 0:00:05.7]}
68. Rb8 {[%clk 0:00:10.7]} 68... Kf2 {[%clk 0:00:05.2]} 69. Bd5 {[%clk
0:00:10.4]} 69... f5 {[%clk 0:00:02.9]} 70. b6 {[%clk 0:00:10.5]} 70... f4
{[%clk 0:00:03.3]} 71. b7 {[%clk 0:00:11.1]} 71... f3 {[%clk 0:00:03.6]} 72. Rh8
{[%clk 0:00:11.7]} 72... Rxb7+ {[%clk 0:00:03.2]} 73. Bxb7 {[%clk 0:00:11.1]}
73... Ke3 {[%clk 0:00:03.1]} 74. R8xh2 {[%clk 0:00:10.3]} 74... Bxh2 {[%clk
0:00:03.1]} 75. Rxh2 {[%clk 0:00:11.2]} 75... f2 {[%clk 0:00:03.7]} 76. Ba6
{[%clk 0:00:11.5]} 76... d5 {[%clk 0:00:03.3]} 77. Rh3+ {[%clk 0:00:11.4]} 77...
Kf4 {[%clk 0:00:03.4]} 78. Rh5 {[%clk 0:00:09]} 78... d4 {[%clk 0:00:01.6]} 79.
Rd5 {[%clk 0:00:09.3]} 79... Ke3 {[%clk 0:00:01.6]} 80. Ke6 {[%clk 0:00:09.8]}
1-0

[Event "Early-Titled-Tuesday-Blitz-April-23-2024"]
[Site "Chess.com"]
[Date "2024.04.23"]
[Round "1"]
[White "mbojan"]
[Black "Ramla2020"]
[Result "1-0"]
[WhiteElo "2907"]
[BlackElo "2513"]
[TimeControl "180+1"]
[EndTime "8:09:26 PDT"]
[Termination "mbojan won by checkmate"]

1. a3 {[%clk 0:03:00.9]} 1... e5 {[%clk 0:02:55]} 2. e3 {[%clk 0:03:01.3]} 2...
Nf6 {[%clk 0:02:52.2]} 3. d4 {[%clk 0:03:02.2]} 3... exd4 {[%clk 0:02:52.1]} 4.
exd4 {[%clk 0:03:03.1]} 4... d5 {[%clk 0:02:49.5]} 5. Bd3 {[%clk 0:03:03.5]}
5... Bd6 {[%clk 0:02:49]} 6. Ne2 {[%clk 0:03:03.6]} 6... h6 {[%clk 0:02:48.6]}
7. Nbc3 {[%clk 0:03:04.1]} 7... O-O {[%clk 0:02:49.5]} 8. O-O {[%clk 0:03:04.3]}
8... c6 {[%clk 0:02:49.6]} 9. Bf4 {[%clk 0:03:04.3]} 9... Qc7 {[%clk 0:02:48.9]}
10. Qd2 {[%clk 0:03:04.3]} 10... Bg4 {[%clk 0:02:47.8]} 11. f3 {[%clk
0:03:04.1]} 11... Bh5 {[%clk 0:02:45.6]} 12. Bxd6 {[%clk 0:03:02.8]} 12... Qxd6
{[%clk 0:02:45]} 13. Nf4 {[%clk 0:03:03.6]} 13... g5 {[%clk 0:02:38.1]} 14. Nxh5
{[%clk 0:02:58.6]} 14... Nxh5 {[%clk 0:02:39]} 15. Ne2 {[%clk 0:02:56.4]} 15...
Nd7 {[%clk 0:02:36.5]} 16. f4 {[%clk 0:02:53.4]} 16... f6 {[%clk 0:02:28.9]} 17.
Bg6 {[%clk 0:02:46.5]} 17... Ng7 {[%clk 0:02:28.6]} 18. f5 {[%clk 0:02:34]}
18... Rfd8 {[%clk 0:02:21.9]} 19. Rae1 {[%clk 0:02:33.7]} 19... Nf8 {[%clk
0:02:22.2]} 20. Ng3 {[%clk 0:02:33.7]} 20... Nxg6 {[%clk 0:02:21.1]} 21. fxg6
{[%clk 0:02:34.2]} 21... Re8 {[%clk 0:02:19.8]} 22. Rxe8+ {[%clk 0:02:30.4]}
22... Rxe8 {[%clk 0:02:19.5]} 23. Qf2 {[%clk 0:02:31.1]} 23... Re6 {[%clk
0:02:10]} 24. c3 {[%clk 0:02:15.7]} 24... Qe7 {[%clk 0:02:06.5]} 25. Qf3 {[%clk
0:02:13.3]} 25... b6 {[%clk 0:01:56.8]} 26. h3 {[%clk 0:02:11.8]} 26... Re1
{[%clk 0:01:54.2]} 27. Kh2 {[%clk 0:02:00.2]} 27... Rxf1 {[%clk 0:01:53.5]} 28.
Nxf1 {[%clk 0:02:01.1]} 28... f5 {[%clk 0:01:51.2]} 29. Ne3 {[%clk 0:01:59.6]}
29... Qd6+ {[%clk 0:01:47.6]} 30. Kh1 {[%clk 0:01:52.3]} 30... Qxg6 {[%clk
0:01:47.4]} 31. c4 {[%clk 0:01:53]} 31... f4 {[%clk 0:01:46.4]} 32. Ng4 {[%clk
0:01:52.1]} 32... h5 {[%clk 0:01:43.1]} 33. Ne5 {[%clk 0:01:52.6]} 33... Qe4
{[%clk 0:01:39.6]} 34. Qxe4 {[%clk 0:01:31.8]} 34... dxe4 {[%clk 0:01:39.3]} 35.
Nxc6 {[%clk 0:01:32.7]} 35... Nf5 {[%clk 0:01:37.2]} 36. Kg1 {[%clk 0:01:32.7]}
36... g4 {[%clk 0:01:34.2]} 37. hxg4 {[%clk 0:01:29]} 37... hxg4 {[%clk
0:01:35.1]} 38. c5 {[%clk 0:01:28.7]} 38... e3 {[%clk 0:01:26.1]} 39. Ne5 {[%clk
0:01:23]} 39... Nxd4 {[%clk 0:01:21.2]} 40. c6 {[%clk 0:01:19]} 40... Ne6 {[%clk
0:01:14.3]} 41. Nxg4 {[%clk 0:01:16.5]} 41... Kf7 {[%clk 0:01:14.5]} 42. g3
{[%clk 0:01:06.3]} 42... Ke7 {[%clk 0:01:15.4]} 43. gxf4 {[%clk 0:01:05.7]}
43... Nxf4 {[%clk 0:01:15.9]} 44. Nxe3 {[%clk 0:00:59.8]} 44... Kd6 {[%clk
0:01:16.3]} 45. Nd1 {[%clk 0:00:51.3]} 45... Kxc6 {[%clk 0:01:15.3]} 46. Kf2
{[%clk 0:00:52.1]} 46... Kd5 {[%clk 0:01:13.9]} 47. Ke3 {[%clk 0:00:52.5]} 47...
Ng2+ {[%clk 0:01:13.1]} 48. Kd3 {[%clk 0:00:52.8]} 48... Nf4+ {[%clk 0:01:13.6]}
49. Kc3 {[%clk 0:00:53.3]} 49... Ne2+ {[%clk 0:01:14]} 50. Kb4 {[%clk
0:00:53.7]} 50... Kc6 {[%clk 0:01:13.3]} 51. Ne3 {[%clk 0:00:54]} 51... a5+
{[%clk 0:01:13.5]} 52. Kc4 {[%clk 0:00:54.2]} 52... b5+ {[%clk 0:01:12]} 53. Kd3
{[%clk 0:00:54.5]} 53... Nf4+ {[%clk 0:01:11.9]} 54. Ke4 {[%clk 0:00:55.1]}
54... Ne6 {[%clk 0:01:12.4]} 55. Ke5 {[%clk 0:00:55.1]} 55... Nc5 {[%clk
0:01:12.4]} 56. Kd4 {[%clk 0:00:55.4]} 56... Ne6+ {[%clk 0:01:12.1]} 57. Kc3
{[%clk 0:00:49.9]} 57... Nc5 {[%clk 0:01:13]} 58. Nf5 {[%clk 0:00:46.9]} 58...
Na4+ {[%clk 0:01:10.3]} 59. Kc2 {[%clk 0:00:46.8]} 59... Kc5 {[%clk 0:01:10.4]}
60. b3 {[%clk 0:00:42.4]} 60... Nb6 {[%clk 0:01:07.9]} 61. Kd3 {[%clk
0:00:42.8]} 61... b4 {[%clk 0:01:06.1]} 62. a4 {[%clk 0:00:42]} 62... Nd5 {[%clk
0:01:05.9]} 63. Ng3 {[%clk 0:00:38.5]} 63... Nf4+ {[%clk 0:01:05.8]} 64. Ke4
{[%clk 0:00:38.1]} 64... Nd5 {[%clk 0:01:04.3]} 65. Ke5 {[%clk 0:00:37.6]} 65...
Ne3 {[%clk 0:00:57.6]} 66. Ne4+ {[%clk 0:00:37.7]} 66... Kb6 {[%clk 0:00:57.9]}
67. Kd4 {[%clk 0:00:38.6]} 67... Nc2+ {[%clk 0:00:57.6]} 68. Kc4 {[%clk
0:00:38.9]} 68... Ne3+ {[%clk 0:00:57.6]} 69. Kd4 {[%clk 0:00:39.4]} 69... Nc2+
{[%clk 0:00:57.7]} 70. Kd5 {[%clk 0:00:39.8]} 70... Na1 {[%clk 0:00:56.3]} 71.
Nc5 {[%clk 0:00:38.1]} 71... Nc2 {[%clk 0:00:55.7]} 72. Nd7+ {[%clk 0:00:38.4]}
72... Ka6 {[%clk 0:00:55.8]} 73. Ke5 {[%clk 0:00:25.2]} 73... Na1 {[%clk
0:00:52.6]} 74. Nc5+ {[%clk 0:00:24.6]} 74... Kb6 {[%clk 0:00:52.3]} 75. Kd6
{[%clk 0:00:25.5]} 75... Nc2 {[%clk 0:00:52.2]} 76. Nd7+ {[%clk 0:00:25.9]}
76... Ka6 {[%clk 0:00:52.3]} 77. Kd5 {[%clk 0:00:23.3]} 77... Ne3+ {[%clk
0:00:51.6]} 78. Kc6 {[%clk 0:00:19.4]} 78... Nc2 {[%clk 0:00:32.2]} 79. Nc5+
{[%clk 0:00:20.3]} 79... Ka7 {[%clk 0:00:30.4]} 80. Kb5 {[%clk 0:00:21.2]} 80...
Kb8 {[%clk 0:00:26.6]} 81. Kxa5 {[%clk 0:00:21.2]} 81... Ka7 {[%clk 0:00:27.5]}
82. Nd3 {[%clk 0:00:18.2]} 82... Nd4 {[%clk 0:00:27]} 83. Kxb4 {[%clk
0:00:18.3]} 83... Nc6+ {[%clk 0:00:27.5]} 84. Kc5 {[%clk 0:00:18.2]} 84... Na5
{[%clk 0:00:26.5]} 85. b4 {[%clk 0:00:18.3]} 85... Nb3+ {[%clk 0:00:26.8]} 86.
Kc4 {[%clk 0:00:18.8]} 86... Nd2+ {[%clk 0:00:27.1]} 87. Kb5 {[%clk 0:00:18.7]}
87... Nb3 {[%clk 0:00:26.6]} 88. Nc5 {[%clk 0:00:18.8]} 88... Nd4+ {[%clk
0:00:26.6]} 89. Kc4 {[%clk 0:00:19.3]} 89... Nc6 {[%clk 0:00:26.7]} 90. a5
{[%clk 0:00:19.9]} 90... Ne5+ {[%clk 0:00:25.5]} 91. Kd5 {[%clk 0:00:20.4]}
91... Nd3 {[%clk 0:00:24.4]} 92. Nxd3 {[%clk 0:00:20.3]} 92... Ka6 {[%clk
0:00:24.8]} 93. Kc6 {[%clk 0:00:20.8]} 93... Ka7 {[%clk 0:00:24.9]} 94. b5
{[%clk 0:00:21.7]} 94... Kb8 {[%clk 0:00:25]} 95. b6 {[%clk 0:00:17.4]} 95...
Ka8 {[%clk 0:00:25.9]} 96. a6 {[%clk 0:00:17.7]} 96... Kb8 {[%clk 0:00:26.4]}
97. Nc5 {[%clk 0:00:17.9]} 97... Ka8 {[%clk 0:00:27.3]} 98. b7+ {[%clk
0:00:17.7]} 98... Kb8 {[%clk 0:00:28.2]} 99. Nd7+ {[%clk 0:00:17.8]} 99... Ka7
{[%clk 0:00:29.1]} 100. b8=Q+ {[%clk 0:00:18.7]} 100... Kxa6 {[%clk 0:00:30]}
101. Qb6# {[%clk 0:00:19.6]} 1-0

[Event "Early-Titled-Tuesday-Blitz-April-23-2024"]
[Site "Chess.com"]
[Date "2024.04.23"]
[Round "1"]
[White "zsizsi99"]
[Black "carokannlover213"]
[Result "0-1"]
[WhiteElo "2470"]
[BlackElo "2816"]
[TimeControl "180+1"]
[EndTime "8:09:29 PDT"]
[Termination "carokannlover213 won on time"]

1. e4 {[%clk 0:03:00.9]} 1... e6 {[%clk 0:02:57]} 2. d4 {[%clk 0:03:00.4]} 2...
d5 {[%clk 0:02:50.9]} 3. Nd2 {[%clk 0:03:00.7]} 3... Be7 {[%clk 0:02:50.3]} 4.
c3 {[%clk 0:02:54.1]} 4... c5 {[%clk 0:02:42.2]} 5. dxc5 {[%clk 0:02:53.8]} 5...
Nf6 {[%clk 0:02:33.9]} 6. exd5 {[%clk 0:02:48.3]} 6... Qxd5 {[%clk 0:02:33.1]}
7. Ngf3 {[%clk 0:02:36.4]} 7... Bxc5 {[%clk 0:02:23.1]} 8. Bc4 {[%clk
0:02:32.6]} 8... Qd8 {[%clk 0:02:10]} 9. O-O {[%clk 0:02:30]} 9... O-O {[%clk
0:02:09.7]} 10. Qe2 {[%clk 0:02:21.9]} 10... Qc7 {[%clk 0:02:08.6]} 11. Ne4
{[%clk 0:02:15.7]} 11... Be7 {[%clk 0:02:05.6]} 12. Nxf6+ {[%clk 0:02:04.7]}
12... Bxf6 {[%clk 0:02:00.9]} 13. Qe4 {[%clk 0:02:04.3]} 13... Nd7 {[%clk
0:01:55.7]} 14. Ng5 {[%clk 0:01:13.5]} 14... Bxg5 {[%clk 0:01:45.8]} 15. Bxg5
{[%clk 0:01:12.4]} 15... Qe5 {[%clk 0:01:46.5]} 16. Qxe5 {[%clk 0:01:01.4]}
16... Nxe5 {[%clk 0:01:47.4]} 17. Be2 {[%clk 0:01:01.1]} 17... Bd7 {[%clk
0:01:46.3]} 18. Rfd1 {[%clk 0:00:47.9]} 18... Bc6 {[%clk 0:01:44.9]} 19. Be7
{[%clk 0:00:32.7]} 19... Rfe8 {[%clk 0:01:44.2]} 20. Bd6 {[%clk 0:00:32.8]}
20... Ng6 {[%clk 0:01:43]} 21. Rd2 {[%clk 0:00:29.9]} 21... Nh4 {[%clk
0:01:43.1]} 22. f3 {[%clk 0:00:29.5]} 22... Nf5 {[%clk 0:01:42.8]} 23. Bc5
{[%clk 0:00:21.6]} 23... e5 {[%clk 0:01:40.3]} 24. b4 {[%clk 0:00:20.1]} 24...
b6 {[%clk 0:01:38.4]} 25. Bf2 {[%clk 0:00:19.3]} 25... e4 {[%clk 0:01:37.2]} 26.
fxe4 {[%clk 0:00:19.4]} 26... Bxe4 {[%clk 0:01:38.1]} 27. Bb5 {[%clk 0:00:18]}
27... Rec8 {[%clk 0:01:36.5]} 28. c4 {[%clk 0:00:18.3]} 28... a6 {[%clk
0:01:33.6]} 29. Bd7 {[%clk 0:00:18]} 29... Rxc4 {[%clk 0:01:34.2]} 30. Re1
{[%clk 0:00:12.3]} 30... g6 {[%clk 0:01:27.9]} 31. Rxe4 {[%clk 0:00:11.2]} 31...
Rxe4 {[%clk 0:01:27.1]} 32. Bc6 {[%clk 0:00:11.7]} 32... Rae8 {[%clk 0:01:19.6]}
33. Bxe8 {[%clk 0:00:11.9]} 33... Rxe8 {[%clk 0:01:19.1]} 34. Bxb6 {[%clk
0:00:12.6]} 34... Re1+ {[%clk 0:01:18.8]} 35. Kf2 {[%clk 0:00:12.1]} 35... Rb1
{[%clk 0:01:18.4]} 36. Bc5 {[%clk 0:00:12.6]} 36... h5 {[%clk 0:01:16.2]} 37. g3
{[%clk 0:00:12.5]} 37... Nh6 {[%clk 0:01:15.2]} 38. a4 {[%clk 0:00:12.7]} 38...
Ng4+ {[%clk 0:01:15]} 39. Kg2 {[%clk 0:00:13.2]} 39... Kg7 {[%clk 0:01:12.8]}
40. a5 {[%clk 0:00:13.7]} 40... g5 {[%clk 0:01:10.8]} 41. h3 {[%clk 0:00:14.1]}
41... Nh6 {[%clk 0:01:11.2]} 42. Rd6 {[%clk 0:00:13.9]} 42... Rb2+ {[%clk
0:01:10.6]} 43. Kf3 {[%clk 0:00:13.3]} 43... Rb3+ {[%clk 0:01:11.1]} 44. Kf2
{[%clk 0:00:12.3]} 44... Nf5 {[%clk 0:01:09.4]} 45. Rxa6 {[%clk 0:00:11.7]}
45... Nxg3 {[%clk 0:01:09.7]} 46. Rd6 {[%clk 0:00:10.4]} 46... Ne4+ {[%clk
0:01:09.5]} 47. Kg2 {[%clk 0:00:10.9]} 47... Nxd6 {[%clk 0:01:00.3]} 48. Bxd6
{[%clk 0:00:11.6]} 48... Ra3 {[%clk 0:00:58.8]} 49. Bc7 {[%clk 0:00:06.7]} 49...
Rb3 {[%clk 0:00:38.2]} 50. Bd6 {[%clk 0:00:07]} 50... Kf6 {[%clk 0:00:23.2]} 51.
a6 {[%clk 0:00:07]} 51... Ke6 {[%clk 0:00:21.3]} 52. a7 {[%clk 0:00:07.2]} 52...
Ra3 {[%clk 0:00:21.4]} 53. Bc5 {[%clk 0:00:07.4]} 53... Kd5 {[%clk 0:00:18.1]}
54. Be3 {[%clk 0:00:05.3]} 54... Kc4 {[%clk 0:00:14]} 55. Bxg5 {[%clk
0:00:04.3]} 55... Rxa7 {[%clk 0:00:12.9]} 56. Kg3 {[%clk 0:00:04.4]} 56... Kxb4
{[%clk 0:00:10.9]} 57. Kh4 {[%clk 0:00:04.9]} 57... Kc4 {[%clk 0:00:11.5]} 58.
Kxh5 {[%clk 0:00:05.1]} 58... Kd5 {[%clk 0:00:12.2]} 59. Kg4 {[%clk 0:00:05.1]}
59... Ra4+ {[%clk 0:00:12.2]} 60. Kg3 {[%clk 0:00:04.9]} 60... Ke6 {[%clk
0:00:12.8]} 61. h4 {[%clk 0:00:05]} 61... Kf5 {[%clk 0:00:13.7]} 62. Be7 {[%clk
0:00:04.9]} 62... Rc4 {[%clk 0:00:13.8]} 63. Bd8 {[%clk 0:00:04]} 63... Rc3+
{[%clk 0:00:13.8]} 64. Kg2 {[%clk 0:00:04.1]} 64... Rb3 {[%clk 0:00:14.7]} 65.
Be7 {[%clk 0:00:04.1]} 65... Kf4 {[%clk 0:00:10.2]} 66. Bd6+ {[%clk 0:00:03.6]}
66... Kg4 {[%clk 0:00:10.4]} 67. Be7 {[%clk 0:00:03.7]} 67... Rb2+ {[%clk
0:00:10.2]} 68. Kf1 {[%clk 0:00:03.7]} 68... Rc2 {[%clk 0:00:11.1]} 69. Bf6
{[%clk 0:00:02.3]} 69... Kf3 {[%clk 0:00:10.7]} 70. Ke1 {[%clk 0:00:02.6]} 70...
Re2+ {[%clk 0:00:09.4]} 71. Kf1 {[%clk 0:00:02.7]} 71... Re6 {[%clk 0:00:08.6]}
72. Bg5 {[%clk 0:00:02.6]} 72... f5 {[%clk 0:00:09.5]} 73. h5 {[%clk 0:00:02.8]}
73... Kg4 {[%clk 0:00:10.2]} 74. Bd2 {[%clk 0:00:02]} 74... Kxh5 {[%clk
0:00:10.4]} 75. Kf2 {[%clk 0:00:02.8]} 75... Kg4 {[%clk 0:00:11.3]} 76. Bc3
{[%clk 0:00:02.5]} 76... Re4 {[%clk 0:00:12.2]} 77. Bd2 {[%clk 0:00:02.8]} 77...
Ra4 {[%clk 0:00:13.1]} 78. Be3 {[%clk 0:00:03.1]} 78... Ra6 {[%clk 0:00:14]} 79.
Bd2 {[%clk 0:00:03.4]} 79... Ra8 {[%clk 0:00:14.9]} 80. Be3 {[%clk 0:00:04]}
80... Rc8 {[%clk 0:00:15.8]} 81. Bd4 {[%clk 0:00:04.6]} 81... f4 {[%clk
0:00:16.7]} 82. Be5 {[%clk 0:00:05]} 82... Rc6 {[%clk 0:00:17.6]} 83. Bd4 {[%clk
0:00:05.4]} 83... Rc2+ {[%clk 0:00:18.4]} 84. Kf1 {[%clk 0:00:05.4]} 84... Ra2
{[%clk 0:00:19.3]} 85. Bc3 {[%clk 0:00:05.7]} 85... Kf3 {[%clk 0:00:20.2]} 86.
Bd4 {[%clk 0:00:05.9]} 86... Rc2 {[%clk 0:00:20.9]} 87. Ke1 {[%clk 0:00:05.8]}
87... Rc1+ {[%clk 0:00:20.6]} 88. Kd2 {[%clk 0:00:06.2]} 88... Rh1 {[%clk
0:00:21.5]} 89. Be5 {[%clk 0:00:06.4]} 89... Rh3 {[%clk 0:00:22.4]} 90. Ke1
{[%clk 0:00:06.6]} 90... Ke3 {[%clk 0:00:22.6]} 91. Kf1 {[%clk 0:00:06.4]} 91...
f3 {[%clk 0:00:23.2]} 92. Kg1 {[%clk 0:00:06.1]} 92... f2+ {[%clk 0:00:23.6]}
93. Kg2 {[%clk 0:00:06.6]} 93... Rh1 {[%clk 0:00:19.3]} 94. Kxh1 {[%clk
0:00:02.2]} 94... f1=Q+ {[%clk 0:00:18.9]} 95. Kh2 {[%clk 0:00:02.8]} 95... Kf3
{[%clk 0:00:19.7]} 96. Bd4 {[%clk 0:00:01.6]} 96... Qe2+ {[%clk 0:00:15.1]} 0-1

[Event "Early-Titled-Tuesday-Blitz-April-23-2024"]
[Site "Chess.com"]
[Date "2024.04.23"]
[Round "2"]
[White "jaskol95"]
[Black "DuleMudule"]
[Result "0-1"]
[WhiteElo "2562"]
[BlackElo "2826"]
[TimeControl "180+1"]
[EndTime "8:12:21 PDT"]
[Termination "DuleMudule won by resignation"]

1. d4 {[%clk 0:03:00.9]} 1... d5 {[%clk 0:02:59.8]} 2. c4 {[%clk 0:02:59.3]}
2... Bf5 {[%clk 0:02:56.5]} 3. cxd5 {[%clk 0:02:57.5]} 3... Bxb1 {[%clk
0:02:56]} 4. Rxb1 {[%clk 0:02:57.6]} 4... Qxd5 {[%clk 0:02:56.1]} 5. Nf3 {[%clk
0:02:54.3]} 5... Nc6 {[%clk 0:02:56.2]} 6. Qa4 {[%clk 0:02:43]} 6... e5 {[%clk
0:02:55.7]} 7. dxe5 {[%clk 0:02:30]} 7... Bb4+ {[%clk 0:02:55.4]} 8. Bd2 {[%clk
0:02:30.3]} 8... Qe4 {[%clk 0:02:55.8]} 9. Qd1 {[%clk 0:02:20.4]} 9... O-O-O
{[%clk 0:02:55.6]} 10. a3 {[%clk 0:02:12.3]} 10... Nxe5 {[%clk 0:02:54.2]} 11.
e3 {[%clk 0:02:06.8]} 11... Nxf3+ {[%clk 0:02:50]} 12. gxf3 {[%clk 0:02:05.8]}
12... Bxd2+ {[%clk 0:02:49.7]} 13. Qxd2 {[%clk 0:02:04.1]} 13... Qxb1+ {[%clk
0:02:49.2]} 0-1

[Event "Early-Titled-Tuesday-Blitz-April-23-2024"]
[Site "Chess.com"]
[Date "2024.04.23"]
[Round "2"]
[White "gpsji27"]
[Black "Tonychess32"]
[Result "0-1"]
[WhiteElo "2305"]
[BlackElo "2542"]
[TimeControl "180+1"]
[EndTime "8:12:21 PDT"]
[Termination "Tonychess32 won by resignation"]

1. d4 {[%clk 0:03:00.9]} 1... d5 {[%clk 0:02:57.6]} 2. Nf3 {[%clk 0:03:01.8]}
2... Nf6 {[%clk 0:02:55.4]} 3. Bg5 {[%clk 0:03:02.5]} 3... Ne4 {[%clk
0:02:50.3]} 4. Bh4 {[%clk 0:03:01.7]} 4... Bf5 {[%clk 0:02:48.2]} 5. Nbd2 {[%clk
0:03:01.1]} 5... c6 {[%clk 0:02:47.9]} 6. c3 {[%clk 0:02:55.7]} 6... Qc7 {[%clk
0:02:43]} 7. e3 {[%clk 0:02:37.1]} 7... e6 {[%clk 0:02:41.8]} 8. Bd3 {[%clk
0:02:25.6]} 8... Bd6 {[%clk 0:02:35.1]} 9. Bg3 {[%clk 0:02:23.9]} 9... Nxg3
{[%clk 0:02:32.5]} 10. hxg3 {[%clk 0:02:24.8]} 10... Bxd3 {[%clk 0:02:31.6]} 0-1

[Event "Early-Titled-Tuesday-Blitz-April-23-2024"]
[Site "Chess.com"]
[Date "2024.04.23"]
[Round "2"]
[White "microbear"]
[Black "sathvikadiga"]
[Result "0-1"]
[WhiteElo "2368"]
[BlackElo "2626"]
[TimeControl "180+1"]
[EndTime "8:12:28 PDT"]
[Termination "sathvikadiga won by resignation"]

1. e4 {[%clk 0:03:00.9]} 1... e6 {[%clk 0:03:00.1]} 2. d4 {[%clk 0:02:58.9]}
2... d5 {[%clk 0:03:00.5]} 3. exd5 {[%clk 0:02:59.8]} 3... exd5 {[%clk
0:03:00.6]} 4. c4 {[%clk 0:03:00.7]} 4... Nf6 {[%clk 0:03:00.5]} 5. Nf3 {[%clk
0:03:00.2]} 5... Bb4+ {[%clk 0:03:00]} 6. Bd2 {[%clk 0:03:00.1]} 6... Bxd2+
{[%clk 0:02:58.8]} 7. Nbxd2 {[%clk 0:03:01]} 7... O-O {[%clk 0:02:59]} 8. Be2
{[%clk 0:02:57.8]} 8... Re8 {[%clk 0:02:57.9]} 9. O-O {[%clk 0:02:52.4]} 9...
Nc6 {[%clk 0:02:53]} 10. Re1 {[%clk 0:02:50.7]} 10... Be6 {[%clk 0:02:47.8]} 11.
c5 {[%clk 0:02:50.4]} 11... Ne4 {[%clk 0:02:45.9]} 12. Rc1 {[%clk 0:02:48.6]}
12... Qf6 {[%clk 0:02:40]} 13. Bd3 {[%clk 0:02:47.2]} 13... Bf5 {[%clk
0:02:34.3]} 14. Bxe4 {[%clk 0:02:46.4]} 14... dxe4 {[%clk 0:02:34]} 15. d5
{[%clk 0:02:40.2]} 15... Nb4 {[%clk 0:02:22.7]} 16. Qb3 {[%clk 0:02:36.5]} 16...
Nd3 {[%clk 0:02:19.8]} 0-1